bitfinex/quotes_ETHUSD_20250518
["timestamp","ask_amount","ask_price","bid_price","bid_amount"]
[1747590989641,3.98517514,2509.3,2509.2,17.208]
[1747590989842,3.98517514,2509.3,2509.2,29.007]
[1747590991740,3.98390158,2510.2,2509.2,29.007]
[1747590991741,1.6613,2511.9,2509.3,5.7821]
[1747590991941,0.45023868,2510.8,2509.5,1.6191]
[1747590992182,0.45023868,2510.8,2509.9,1.6191]
[1747590992382,0.45023868,2510.8,2510.0,11.734]
[1747590992383,4.39459467,2510.8,2510.0,11.734]
[1747590992587,3.98368152,2510.3,2510.0,11.734]
[1747590992880,3.98374631,2510.2,2510.1,11.734]
[1747590993778,3.98374631,2510.2,2510.1,11.733]
[1747590994140,8.0,2510.3,2509.6,1.6191]
[1747590994342,3.94435599,2510.0,2509.7,11.733]
[1747590994981,3.94435599,2510.0,2509.6,1.6191]
[1747590995181,3.94435599,2510.0,2509.8,11.733]
[1747590995683,3.98357101,2510.4,2509.8,11.733]
[1747590995980,3.98375178,2510.2,2509.8,11.733]
[1747590996341,11.98332007,2510.5,2509.9,3.9841292]
[1747590996539,11.98332007,2510.5,2509.8,11.733]
[1747590996746,3.98362539,2510.3,2509.8,11.733]
[1747590997776,3.98362539,2510.3,2509.3,3.98514372]
[1747590997777,9.5057,2510.0,2508.8,3.98583387]
[1747590997959,1.5057,2510.0,2508.9,1.5858]
[1747590998151,3.98464128,2509.7,2509.1,3.98543705]
[1747590998377,11.98438304,2509.8,2509.1,3.98543705]
[1747590998582,3.98471041,2509.6,2509.0,3.98557934]
[1747590998887,3.98439436,2509.8,2509.1,0.55713793]
[1747590999095,3.98516391,2509.4,2509.2,11.733]
[1747590999267,3.98516391,2509.4,2509.3,11.733]
[1747590999777,3.98479488,2509.6,2509.3,11.733]
[1747591000086,3.98483899,2509.6,2509.4,17.208]
[1747591000489,11.94435599,2509.9,2509.4,17.208]
[1747591000702,3.98485754,2509.5,2509.4,17.208]
[1747591000999,4.78470958,2509.6,2509.4,28.941]
[1747591001209,0.8,2509.6,2509.4,28.941]
[1747591002305,3.98485754,2509.5,2509.4,28.941]
[1747591002607,3.98485754,2509.5,2509.4,28.942]
[1747591004367,3.98485754,2509.5,2509.4,17.208]
[1747591004569,15.92921353,2509.5,2509.4,17.208]
[1747591004800,8.0,2509.4,2508.2,17.208]
[1747591005066,3.98544802,2509.2,2508.4,1.5591]
[1747591005266,8.0,2509.1,2508.4,1.5591]
[1747591005487,8.0,2509.1,2508.5,3.98635804]
[1747591005694,8.0,2509.1,2508.4,1.5591]
[1747591005695,3.98580348,2509.0,2508.4,1.5591]
[1747591005902,3.98565165,2509.0,2508.5,11.734]
[1747591006078,8.0,2509.2,2508.6,11.734]
[1747591006396,3.98607306,2508.8,2508.6,11.734]
[1747591006701,1.5983,2509.0,2508.5,11.734]
[1747591006906,3.98605261,2508.8,2508.5,11.734]
[1747591007231,3.98593873,2508.9,2508.5,11.734]
[1747591007372,3.98628717,2508.6,2508.5,11.734]
[1747591009006,11.98615016,2508.7,2508.5,11.735]
[1747591009572,11.9862723,2508.7,2508.5,11.735]
[1747591009770,3.98628717,2508.6,2508.5,11.735]
[1747591012428,3.98600158,2508.8,2508.5,12.9085]
[1747591012576,3.88273245,2509.0,2508.5,11.735]
[1747591012777,3.98625763,2508.7,2508.5,11.735]
[1747591012989,3.98628717,2508.6,2508.5,11.735]
[1747591013979,3.98616001,2508.7,2508.5,11.735]
[1747591014180,3.98515854,2508.7,2508.5,11.735]
[1747591014488,3.98628717,2508.6,2508.5,11.735]
[1747591014687,15.57773245,2509.0,2508.5,11.735]
[1747591015009,3.98628717,2508.6,2508.5,11.735]
[1747591015230,3.986605,2508.4,2508.3,11.737]
[1747591015380,3.88273245,2508.7,2508.3,11.737]
[1747591015587,11.692,2508.6,2508.3,11.737]
[1747591015794,3.986605,2508.4,2508.3,11.737]
[1747591017605,3.98653096,2508.5,2508.3,11.737]
[1747591017920,3.88273245,2508.7,2508.3,11.737]
[1747591018126,3.98630851,2508.6,2508.3,14.6315]
[1747591018631,3.98659974,2508.5,2508.3,11.737]
[1747591019736,3.98676394,2508.3,2508.2,17.208]
[1747591019940,3.98676394,2508.3,2508.2,28.946]
[1747591020528,3.88273245,2508.6,2508.2,28.946]
[1747591020728,3.98653262,2508.5,2508.2,28.946]
[1747591021028,11.68,2508.7,2508.2,31.26602967]
[1747591021193,3.98607912,2508.8,2508.3,3.98668552]
[1747591022340,3.98596938,2508.8,2508.2,35.20280018]
[1747591022636,3.98614968,2508.7,2508.2,35.20280018]
[1747591023006,11.68,2508.9,2508.2,31.21602967]
[1747591023217,3.88273245,2508.6,2508.2,28.896]
[1747591023618,3.98668941,2508.4,2508.2,28.896]
[1747591023998,3.98650201,2508.5,2508.2,28.896]
[1747591024415,3.98619811,2508.7,2508.2,32.88284708]
[1747591024734,3.98658494,2508.5,2508.2,28.896]
[1747591024914,3.98658494,2508.5,2508.2,32.34022681]
[1747591025309,3.88273245,2508.6,2508.2,17.158]
[1747591025498,3.9867391,2508.4,2508.2,17.158]
[1747591025704,3.98675255,2508.4,2508.2,28.835]
[1747591026502,3.98659893,2508.5,2508.2,28.835]
[1747591026736,3.98670588,2508.4,2508.2,28.835]
[1747591027903,3.98645462,2508.5,2508.2,17.158]
[1747591028104,3.98645462,2508.5,2508.3,11.677]
[1747591028305,3.986605,2508.4,2508.3,11.677]
[1747591030245,3.98676394,2508.3,2508.2,17.158]
[1747591030542,3.98676394,2508.3,2508.2,28.836]
[1747591031347,4.78676394,2508.3,2508.2,28.836]
[1747591032917,3.98816788,2507.5,2507.4,11.678]
[1747591033131,3.88273245,2507.5,2507.4,11.678]
[1747591033439,3.98743838,2507.9,2507.4,16.98910251]
[1747591033619,3.98732439,2508.0,2507.5,3.9880022]
[1747591033944,3.98710751,2508.1,2507.6,11.678]
[1747591033945,3.88273245,2507.9,2507.6,11.678]
[1747591034105,3.88273245,2507.9,2507.3,1.5515]
[1747591034106,3.98771782,2507.7,2507.3,13.2295]
[1747591034407,3.98819494,2507.4,2507.3,11.678]
[1747591035228,3.98811659,2507.5,2507.3,11.678]
[1747591035429,3.98843827,2507.3,2507.1,17.217]
[1747591035633,3.98843827,2507.3,2507.2,11.679]
[1747591035929,3.98824053,2507.4,2507.2,11.679]
[1747591036134,3.98851308,2507.2,2507.1,17.217]
[1747591036306,7.87073765,2507.6,2507.1,17.217]
[1747591036502,3.88273245,2507.9,2507.2,1.76158311]
[1747591036708,3.98772837,2507.7,2507.2,5.71018651]
[1747591037248,3.98772837,2507.7,2507.2,1.7217]
[1747591037453,3.98772837,2507.7,2507.3,1.6644]
[1747591037657,3.98772837,2507.7,2507.3,4.12356897]
[1747591038012,3.98792554,2507.6,2507.3,4.12356897]
[1747591038250,7.87015306,2507.9,2507.3,4.12356897]
[1747591038557,3.98692289,2508.2,2507.3,4.12356897]
[1747591038762,3.88273245,2508.3,2507.4,0.5845269]
[1747591038960,3.98677789,2508.3,2507.8,3.98744868]
[1747591039155,6.64122761,2508.8,2507.9,1.5302]
[1747591039156,10.52396006,2508.8,2507.9,1.5302]
[1747591039355,3.9863094,2508.6,2508.1,3.98708185]
[1747591039578,3.98625585,2508.7,2508.2,28.9]
[1747591039778,3.98635259,2508.6,2508.2,28.9]
[1747591039977,3.98620668,2508.7,2508.2,32.88689784]
[1747591040174,6.64122761,2508.8,2508.3,3.98662046]
[1747591040379,10.62725804,2508.8,2508.3,3.98665917]
[1747591040563,6.64122761,2508.8,2508.4,3.28866592]
[1747591040767,0.8,2508.6,2508.4,3.28866592]
[1747591041164,0.45023868,2508.8,2508.4,3.28866592]
[1747591041458,4.58958325,2509.0,2508.4,7.27513213]
[1747591041459,3.98569237,2509.0,2508.4,7.27513213]
[1747591041657,15.50873245,2509.1,2508.5,1.5302]
[1747591041955,3.98624366,2508.7,2508.5,1.5302]
[1747591042355,3.98628717,2508.6,2508.5,1.5302]
[1747591042554,3.88273245,2508.8,2508.2,17.22]
[1747591042752,3.98676394,2508.3,2508.2,17.22]
[1747591042975,3.98676394,2508.3,2508.2,28.899]
[1747591043389,3.98676394,2508.3,2508.2,17.22]
[1747591043766,3.98786799,2507.7,2507.5,1.6164]
[1747591043958,3.98797197,2507.6,2507.5,11.679]
[1747591045093,3.988354,2507.3,2507.2,17.219]
[1747591045390,3.988354,2507.3,2507.2,28.898]
[1747591045585,3.98821083,2507.4,2507.2,28.898]
[1747591045787,3.988354,2507.3,2507.2,28.898]
[1747591046358,3.9882747,2507.4,2507.2,28.898]
[1747591046564,3.9882747,2507.4,2507.3,11.679]
[1747591047292,3.98724082,2508.0,2507.4,3.98809055]
[1747591047490,3.98738149,2508.0,2507.4,3.98809055]
[1747591047694,3.98738149,2508.0,2507.3,18.2787714]
[1747591047695,0.8,2508.0,2507.5,1.6164]
[1747591047894,0.8,2508.0,2507.9,3.98739981]
[1747591048097,0.8,2508.0,2507.9,16.46490287]
[1747591048401,0.45023868,2508.7,2508.1,1.6164]
[1747591048562,0.45023868,2508.7,2508.6,5.53678717]
[1747591048760,0.45023868,2508.7,2508.6,17.21678717]
[1747591049001,0.11255967,2508.7,2508.6,17.21678717]
[1747591049205,1.19734952,2509.6,2508.9,1.5505]
[1747591049499,1.19734952,2509.6,2509.3,5.53567514]
[1747591049700,1.19734952,2509.6,2509.3,34.43567514]
[1747591050466,3.98413296,2510.0,2509.3,34.43567514]
[1747591050662,6.46902044,2510.2,2509.3,17.22]
[1747591050966,6.46902044,2510.2,2509.3,32.88317514]
[1747591050967,3.98415555,2510.0,2509.3,32.88317514]
[1747591051190,3.98424111,2509.9,2509.3,36.57001522]
[1747591051767,3.98438435,2509.8,2509.3,36.57001522]
[1747591051974,3.98473057,2509.6,2509.3,28.898]
[1747591052185,3.98425535,2509.9,2509.3,28.898]
[1747591052389,11.595,2510.1,2509.3,28.898]
[1747591052590,3.98448867,2509.8,2509.3,28.898]
[1747591052896,3.98444505,2509.8,2509.3,28.898]
[1747591053096,15.57895071,2510.1,2509.3,32.88317514]
[1747591053285,11.588,2510.2,2509.4,3.98501633]
[1747591053472,15.57177955,2510.2,2509.3,17.22]
[1747591053680,3.98464054,2509.7,2509.4,11.587]
[1747591053891,3.98441017,2509.8,2509.4,11.587]
[1747591054090,3.98430992,2509.9,2509.4,11.587]
[1747591054792,3.98439129,2509.8,2509.4,11.587]
[1747591054997,3.98479983,2509.6,2509.4,11.587]
[1747591055374,3.98461469,2509.7,2509.4,11.587]
[1747591055572,3.98449894,2509.8,2509.4,11.587]
[1747591055773,3.98501633,2509.4,2509.3,28.807]
[1747591056071,3.98501633,2509.4,2508.6,2.12032136]
[1747591056072,3.98597561,2508.8,2508.6,1.5505]
[1747591056273,3.98628717,2508.6,2508.5,17.214]
[1747591056494,3.98628717,2508.6,2508.5,28.799]
[1747591057195,3.98739981,2507.9,2507.8,1.5505]
[1747591057396,1.5349,2508.5,2507.8,2.23857713]
[1747591057706,0.8,2508.4,2507.9,4.32018053]
[1747591058018,3.98677264,2508.3,2507.9,0.3328612]
[1747591058178,13.1069,2508.5,2507.9,0.3328612]
[1747591058378,3.98724082,2508.0,2507.9,0.3328612]
[1747591059009,3.986605,2508.4,2507.9,0.3328612]
[1747591059209,15.55389493,2508.3,2507.9,0.3328612]
[1747591059425,3.98694849,2508.2,2507.9,0.3328612]
[1747591060616,3.98709841,2508.1,2508.0,11.586]
[1747591060823,15.54965999,2508.4,2508.0,11.586]
[1747591061029,3.98708185,2508.1,2508.0,11.91884793]
[1747591062034,5.51377183,2508.9,2508.0,17.09789584]
[1747591062217,3.98637597,2508.6,2508.1,1.5592]
[1747591063136,4.78614752,2508.7,2508.2,11.587]
[1747591063290,3.98638232,2508.6,2508.2,11.587]
[1747591063492,4.78624106,2508.7,2508.2,11.587]
[1747591063919,4.78624106,2508.7,2508.2,13.3992192]
[1747591064329,4.78624106,2508.7,2508.2,17.38612423]
[1747591065239,0.8,2508.7,2508.2,13.3992192]
[1747591065528,0.8,2508.7,2508.5,3.98639635]
[1747591065708,0.8,2508.7,2508.6,3.98628717]
[1747591065904,0.8,2508.7,2508.6,6.3395066]
[1747591066118,3.94787183,2509.6,2508.6,2.31336107]
[1747591066423,3.98592685,2508.9,2508.7,11.588]
[1747591066609,3.98565165,2509.0,2508.7,11.588]
[1747591066814,3.98596938,2508.8,2508.7,11.588]
[1747591067330,3.94787183,2509.2,2508.4,17.216]
[1747591067520,3.98644608,2508.5,2508.4,17.216]
[1747591070401,15.51844608,2508.5,2508.4,17.216]
[1747591071105,3.98644608,2508.5,2508.4,17.216]
[1747591074338,15.50644608,2508.5,2508.4,17.216]
[1747591074521,19.52,2508.5,2507.3,17.217]
[1747591074722,3.98788572,2507.6,2507.3,17.217]
[1747591074938,3.98795285,2507.6,2507.3,20.49645791]
[1747591075324,11.519,2507.9,2507.3,20.49645791]
[1747591075325,3.98750538,2507.9,2507.4,1.5908]
[1747591075511,15.50408185,2508.1,2507.4,1.5908]
[1747591075512,3.98782644,2507.7,2507.4,1.5908]
[1747591075721,8.0,2508.0,2507.5,11.589]
[1747591076037,3.98803589,2507.5,2507.4,1.5908]
[1747591076202,3.98771782,2507.7,2507.6,11.589]
[1747591080122,3.98771782,2507.7,2507.6,12.589]
[1747591080440,15.49445262,2507.9,2507.6,12.589]
[1747591080616,3.98695807,2508.2,2507.6,2.2589]
[1747591080819,5.50421782,2507.7,2507.6,1.0]
[1747591081146,17.00421782,2507.7,2507.6,1.0]
[1747591081639,25.00421782,2507.7,2507.6,1.0]
[1747591084154,13.50421782,2507.7,2507.6,1.0]
[1747591084355,3.98729021,2508.0,2507.6,1.0]
[1747591084542,15.43787183,2508.2,2507.7,11.491]
[1747591084752,11.49,2508.2,2507.8,1.2491]
[1747591084949,11.49,2508.2,2507.7,15.47864334]
[1747591084950,15.47692662,2508.2,2507.7,15.47864334]
[1747591085133,11.49,2508.2,2507.8,3.98753632]
[1747591085340,3.98668054,2508.4,2507.9,3.98739981]
[1747591085644,3.98628833,2508.6,2508.1,3.98699244]
[1747591085834,3.98628833,2508.6,2507.9,3.98739981]
[1747591086039,3.98628833,2508.6,2508.1,3.98706391]
[1747591087021,3.98620661,2508.7,2508.0,4.54115456]
[1747591087219,3.98643975,2508.6,2508.0,4.54115456]
[1747591088259,3.98643975,2508.6,2508.1,3.98707289]
[1747591088978,11.48,2508.9,2508.0,0.55398998]
[1747591088979,3.98654813,2508.5,2508.0,0.55398998]
[1747591089274,3.98651763,2508.5,2508.2,11.491]
[1747591089625,3.98635889,2508.6,2508.2,11.491]
[1747591089948,11.48,2508.9,2508.2,11.491]
[1747591090259,5.47337183,2509.0,2508.2,11.491]
[1747591090421,5.47337183,2509.0,2508.2,17.02561403]
[1747591090422,3.98596938,2508.8,2508.2,17.02561403]
[1747591090625,9.45903981,2509.0,2508.3,3.98675262]
[1747591090833,3.98605803,2508.8,2508.4,1.6186]
[1747591091651,3.98581051,2508.9,2508.4,1.6186]
[1747591091961,3.98596938,2508.8,2508.5,11.49]
[1747591092320,3.98627222,2508.7,2508.3,17.22]
[1747591092555,3.98630042,2508.6,2508.4,11.489]
[1747591092755,3.9860206,2508.8,2508.4,11.489]
[1747591093361,3.98621235,2508.7,2508.4,11.489]
[1747591094798,3.98527774,2509.3,2508.4,14.91337293]
[1747591094981,7.93262561,2509.6,2508.9,3.98573608]
[1747591095146,3.98493735,2509.5,2509.0,15.47358265]
[1747591095352,3.98493735,2509.5,2509.1,1.6598]
[1747591095683,3.98476613,2509.6,2509.1,6.36054951]
[1747591095870,3.98476613,2509.6,2509.1,2.37506207]
[1747591096072,3.98476613,2509.6,2509.1,6.36050853]
[1747591096275,3.98476613,2509.6,2509.1,2.37506207]
[1747591096689,3.98476613,2509.6,2509.1,6.36055148]
[1747591096980,3.98507385,2509.4,2509.2,1.78485515]
[1747591097183,3.98488646,2509.5,2509.3,11.488]
[1747591097759,3.98475988,2509.6,2509.3,11.488]
[1747591097954,15.3991899,2509.9,2509.3,11.488]
[1747591098156,3.98415524,2510.0,2509.4,3.98501633]
[1747591098482,11.438,2510.0,2509.5,1.54730163]
[1747591098657,15.42211405,2510.0,2509.5,1.54730163]
[1747591098865,3.98422247,2509.9,2509.5,1.54630015]
[1747591099065,3.98416922,2510.0,2509.5,5.57098656]
[1747591099472,3.98416922,2510.0,2509.5,1.54630015]
[1747591099781,3.98407601,2510.0,2509.6,0.55312333]
[1747591099988,3.98398506,2510.1,2509.7,1.6598]
[1747591100384,3.98379368,2510.2,2509.7,5.6443333]
[1747591100563,3.98377005,2510.2,2509.7,5.64431496]
[1747591101186,3.98393263,2510.1,2509.7,1.6598]
[1747591101483,7.93279319,2510.3,2509.7,1.6598]
[1747591101484,3.98361526,2510.3,2509.8,0.61975459]
[1747591101686,3.98385105,2510.2,2509.9,11.485]
[1747591101895,3.98395117,2510.1,2509.9,11.485]
[1747591102054,3.98361931,2510.3,2509.9,11.485]
[1747591102393,3.98358761,2510.3,2509.9,11.485]
[1747591102604,3.98376502,2510.2,2509.9,11.485]
[1747591102764,3.98364566,2510.3,2509.9,11.485]
[1747591103084,3.98342985,2510.4,2509.9,15.46919963]
[1747591103254,3.98389611,2510.2,2509.9,11.485]
[1747591104693,3.98389611,2510.2,2509.7,5.64424355]
[1747591104993,3.9491899,2510.2,2509.2,1.6598]
[1747591105155,3.98406374,2510.0,2509.3,28.699]
[1747591105355,3.98438122,2509.8,2509.3,28.699]
[1747591105574,11.408,2509.9,2509.3,28.699]
[1747591105798,3.9491899,2509.8,2509.3,17.215]
[1747591105986,7.93420623,2509.4,2509.3,17.215]
[1747591106356,3.98567352,2509.0,2508.5,30.3548]
[1747591106561,3.98620566,2508.7,2508.5,28.695]
[1747591106987,3.98628717,2508.6,2508.5,28.695]
[1747591107193,0.0633,2508.2,2506.9,0.19558929]
[1747591107465,11.98930865,2506.7,2505.7,4.96103908]
[1747591107688,3.99074147,2505.8,2505.7,4.96103908]
[1747591107901,19.33893137,2505.8,2505.7,4.96103908]
[1747591108087,27.33893137,2505.8,2505.7,4.96103908]
[1747591108286,19.33893137,2505.8,2505.7,4.96103908]
[1747591109397,19.33693137,2505.8,2505.7,4.96103908]
[1747591109604,19.33593137,2505.8,2505.7,4.96103908]
[1747591110297,15.38674147,2505.8,2505.7,4.96103908]
[1747591111178,3.99074147,2505.8,2505.7,4.96103908]
[1747591112503,0.01698897,2505.8,2505.0,11.49]
[1747591112708,3.99146325,2505.4,2505.0,12.80498]
[1747591113336,3.9491899,2505.5,2505.0,11.49]
[1747591113610,3.99153793,2505.3,2504.5,17.212]
[1747591113778,3.99229431,2504.9,2504.5,17.212]
[1747591114101,15.388064,2505.0,2504.5,17.212]
[1747591114272,3.9921789,2504.9,2504.5,17.212]
[1747591114675,19.33609385,2505.1,2504.5,17.212]
[1747591114878,3.99253904,2504.7,2504.5,17.212]
[1747591115308,3.99265351,2504.6,2504.5,17.212]
[1747591115693,8.0,2504.6,2504.5,17.212]
[1747591116003,8.0,2505.0,2504.5,17.212]
[1747591116207,8.0,2504.9,2504.5,17.212]
[1747591116708,8.0,2504.5,2503.9,20.2565427]
[1747591116913,12.3834,2505.2,2503.9,22.28219697]
[1747591117109,12.3834,2505.2,2504.0,11.399]
[1747591117110,3.99201596,2505.0,2504.0,11.399]
[1747591117309,8.0,2504.7,2504.1,11.399]
[1747591117517,11.99329127,2504.2,2504.1,11.399]
[1747591118011,8.0,2504.5,2503.9,48.8865427]
[1747591118210,11.392,2504.6,2503.9,48.8865427]
[1747591118211,3.99361022,2504.0,2503.9,48.8865427]
[1747591118511,3.99361022,2504.0,2503.9,20.2565427]
[1747591118512,27.33180012,2504.0,2503.9,20.2565427]
[1747591119130,45.43017012,2504.0,2503.9,20.2565427]
[1747591119279,16.93320012,2504.0,2503.9,20.2565427]
[1747591119479,40.24525112,2504.0,2503.9,20.2565427]
[1747591120506,8.0,2503.0,2502.9,17.231]
[1747591120709,11.99520575,2503.0,2502.9,17.231]
[1747591120917,3.99540446,2502.9,2502.1,37.81967769]
[1747591121099,3.9954658,2502.9,2502.3,15.39831452]
[1747591121300,8.0,2503.0,2502.3,11.402]
[1747591121502,3.99632338,2502.3,2502.2,0.33361945]
[1747591121728,11.99648309,2502.2,2502.1,20.58367769]
[1747591122205,8.0,2502.1,2500.3,14.20881267]
[1747591122524,11.9491899,2500.4,2497.7,0.56753012]
[1747591122706,25.73182332,2502.0,2494.4,4.001]
[1747591122707,5.6567812,2497.8,2494.4,4.001]
[1747591122877,4.00737356,2495.4,2495.3,0.04003468]
[1747591123082,16.70552835,2495.4,2495.3,0.20838796]
[1747591123384,3.35336694,2496.3,2495.2,9.84518206]
[1747591123385,14.329,2495.7,2495.2,9.84518206]
[1747591123607,8.00259856,2495.3,2495.2,7.57617525]
[1747591123806,4.00801603,2495.0,2494.0,14.392]
[1747591123978,4.00801603,2495.0,2494.9,49.45520899]
[1747591124725,4.00705241,2495.6,2494.9,53.33651854]
[1747591124913,0.46280084,2495.9,2494.9,49.45520899]
[1747591125114,0.01698897,2495.8,2494.9,49.45520899]
[1747591125320,0.73882014,2495.9,2494.9,49.45520899]
[1747591125861,0.44581187,2495.9,2494.9,49.45520899]
[1747591126207,0.44581187,2495.9,2493.7,25.40302786]
[1747591126208,4.00994466,2493.8,2493.7,14.10743903]
[1747591126508,4.00994466,2493.8,2488.7,0.25708502]
[1747591126509,4.01509676,2490.6,2488.7,0.25708502]
[1747591126709,0.47920323,2491.6,2489.3,4.01711878]
[1747591126924,22.249,2491.5,2489.4,0.37544533]
[1747591127090,9.62007041,2490.5,2489.5,0.33532139]
[1747591127291,4.0167482,2489.6,2489.5,0.13498403]
[1747591127514,4.0167482,2489.6,2488.6,29.31563474]
[1747591127515,4.01816209,2488.7,2488.6,29.31563474]
[1747591127737,9.62281433,2488.7,2488.6,28.85511984]
[1747591128024,4.01816209,2488.7,2488.6,16.82120377]
[1747591128221,8.03737855,2488.6,2487.4,0.444]
[1747591128439,4.01913106,2488.1,2487.4,0.444]
[1747591128598,5.60465224,2489.7,2487.4,0.444]
[1747591128800,5.60465224,2490.1,2487.5,24.015]
[1747591129031,4.01734013,2489.3,2487.4,0.444]
[1747591129236,5.60465224,2489.7,2487.4,0.444]
[1747591129451,0.33776942,2490.2,2487.6,1.4973]
[1747591129610,0.32995555,2490.1,2487.6,1.4973]
[1747591130113,4.01606425,2490.0,2487.6,1.4973]
[1747591130313,0.32995555,2489.9,2487.6,1.4973]
[1747591130693,0.32995555,2489.9,2488.2,4.01887331]
[1747591130895,4.45923238,2491.7,2488.3,17.69188733]
[1747591130896,4.01509676,2490.6,2488.3,17.69188733]
[1747591131122,5.60465224,2490.4,2488.4,0.0401724]
[1747591131308,0.1,2490.6,2488.3,17.29]
[1747591131309,4.01654817,2489.7,2488.3,17.29]
[1747591131507,28.02971518,2490.9,2488.3,17.29]
[1747591131508,0.1,2490.8,2488.3,17.29]
[1747591131723,24.015,2490.9,2488.3,18.7873]
[1747591131724,5.60465224,2490.5,2488.3,18.7873]
[1747591131909,5.60465224,2490.2,2488.3,17.29]
[1747591132230,5.60465224,2489.7,2488.3,17.29]
[1747591132456,0.32995555,2489.6,2488.3,17.29]
[1747591132950,0.23495734,2489.5,2489.4,4.01703221]
[1747591133251,24.04,2492.7,2490.3,4.01547663]
[1747591133429,0.02084799,2492.9,2490.4,17.309]
[1747591133737,1.19734952,2493.0,2490.7,1.5308]
[1747591133899,1.19734952,2493.0,2490.8,0.04012814]
[1747591134211,4.01144632,2492.9,2490.7,1.5308]
[1747591134397,5.60734771,2492.2,2489.8,1.5308]
[1747591134602,0.1,2492.6,2489.9,17.318]
[1747591134603,4.0141804,2491.2,2489.9,17.318]
[1747591134829,5.6081135,2494.2,2491.2,1.5308]
[1747591135028,4.43929966,2494.2,2491.3,17.318]
[1747591135234,5.60385144,2493.8,2491.3,17.318]
[1747591135431,4.01229431,2492.4,2491.3,17.318]
[1747591135632,4.0107488,2493.3,2491.3,17.318]
[1747591135835,5.60474064,2493.6,2491.3,16.15680397]
[1747591136037,4.0107488,2493.3,2491.3,16.15680397]
[1747591136233,4.0107488,2493.3,2491.3,14.27192397]
[1747591136401,5.60848403,2492.6,2490.2,1.5308]
[1747591136602,71.55150547,2493.2,2490.3,17.65321367]
[1747591136603,5.60848403,2493.1,2490.3,17.65321367]
[1747591136801,4.01104824,2493.2,2491.1,4.01427211]
[1747591137003,4.01124671,2493.0,2491.9,1.5308]
[1747591137203,4.01092891,2493.2,2492.0,17.323]
[1747591137523,4.01028421,2493.6,2492.0,19.60969527]
[1747591137709,4.00924444,2494.3,2492.0,19.60969527]
[1747591137911,4.01030461,2493.6,2492.0,17.323]
[1747591138100,4.00957451,2494.1,2491.9,1.5308]
[1747591138303,88.336221,2494.0,2490.4,1.5308]
[1747591138504,5.60848403,2493.2,2490.5,17.323]
[1747591138703,5.60848403,2494.1,2490.7,1.5308]
[1747591138939,4.0108843,2493.3,2491.9,1.6019]
[1747591139144,4.01038258,2493.6,2492.3,4.0122085]
[1747591139432,28.06944927,2494.2,2492.0,17.88450165]
[1747591139433,0.22995555,2493.2,2492.0,17.88450165]
[1747591139650,0.22995555,2493.2,2492.0,17.323]
[1747591139848,8.0,2493.1,2492.0,17.323]
[1747591140001,12.01062977,2493.4,2492.1,4.01268006]
[1747591140337,4.01109157,2493.1,2492.0,19.2252211]
[1747591140541,0.20884406,2493.9,2492.8,4.01139307]
[1747591140867,10.21663852,2494.9,2492.3,24.061]
[1747591141139,5.60848403,2493.9,2491.9,1.6019]
[1747591141339,4.01284109,2492.0,2489.9,1.6019]
[1747591141512,8.0,2491.7,2490.0,17.324]
[1747591141718,8.0,2491.3,2490.0,17.324]
[1747591141923,4.01437551,2491.1,2490.0,17.324]
[1747591142123,4.01703221,2489.4,2489.3,1.6019]
[1747591142326,4.01913106,2488.1,2488.0,0.005]
[1747591142536,4.01961572,2487.8,2486.1,0.29883077]
[1747591142703,4.02252614,2486.0,2485.9,10.88530433]
[1747591142903,4.02158481,2486.6,2485.9,10.88530433]
[1747591143108,4.02252614,2486.0,2485.9,10.88530433]
[1747591143350,4.02544078,2484.2,2483.5,17.57770502]
[1747591143554,4.02523239,2484.4,2483.5,17.57770502]
[1747591143752,4.02544078,2484.2,2483.5,17.57770502]
[1747591144137,2.225738,2484.3,2483.5,0.25370502]
[1747591144351,7.04923297,2486.3,2483.5,0.25370502]
[1747591144615,4.02185829,2486.5,2484.2,11.6713]
[1747591144845,4.0199641,2487.6,2484.3,2.16025975]
[1747591145155,31.12123297,2488.1,2484.5,8.0]
[1747591145315,4.02071693,2487.2,2484.6,2.12]
[1747591145521,0.80905589,2486.9,2484.6,2.12]
[1747591145853,0.80905589,2486.9,2484.8,9.5513]
[1747591146055,0.80905589,2486.9,2485.8,4.02283613]
[1747591146226,0.80905589,2486.9,2485.9,17.332]
[1747591146429,0.80905589,2486.9,2485.8,17.345]
[1747591146645,8.0,2486.7,2485.9,17.345]
[1747591146848,0.80905589,2486.9,2486.0,17.345]
[1747591147033,0.80905589,2486.9,2486.1,17.345]
[1747591147220,4.02539755,2484.3,2484.2,17.345]
[1747591147416,4.02360908,2485.4,2484.2,17.345]
[1747591147615,4.3565856,2486.7,2484.4,4.02511672]
[1747591147926,0.33518866,2486.7,2484.6,8.1]
[1747591148129,0.33518866,2486.7,2484.1,23.85502755]
[1747591148130,75.319508,2486.6,2484.1,23.85502755]
[1747591148342,0.5,2486.5,2484.1,23.85502755]
[1747591148541,0.83518866,2486.5,2484.2,17.345]
[1747591148724,0.83518866,2486.5,2485.0,8.0]
[1747591148917,0.83518866,2486.5,2485.1,28.11391791]
[1747591149149,0.5,2486.5,2486.1,4.02236195]
[1747591149457,0.5,2486.5,2486.2,17.355]
[1747591149618,0.5,2486.5,2486.3,17.355]
[1747591149817,0.5,2486.5,2485.1,24.09]
[1747591149818,0.5,2486.5,2486.4,16.00797852]
[1747591150118,0.5,2486.5,2486.4,17.355]
[1747591150766,0.59985589,2487.6,2486.4,17.355]
[1747591150987,1.19734952,2488.3,2486.5,4.02171727]
[1747591151340,1.19734952,2488.3,2486.1,1.4683]
[1747591151341,1.19734952,2488.3,2484.9,2.13496667]
[1747591151535,0.33518866,2487.8,2487.0,4.02087888]
[1747591151735,0.33518866,2487.8,2487.1,17.355]
[1747591152185,1.19734952,2488.3,2487.1,19.0905]
[1747591152370,24.105,2490.5,2487.3,1.4683]
[1747591152571,0.0401889,2490.4,2488.8,4.01800064]